[Event "Titled Tuesday Blitz October 25 Late 2022"]
[White "Pinero Rodriguez, Carlos Jose"]
[Black "Mihajlov, Sebastian"]
[WhiteFideId "3901726"]
[BlackFideId "1512110"]
[WhiteElo "2146"]
[BlackElo "2464"]
[Result "1-0"]
[Round "03"]
[TimeControl "180+1"]
[Date "2022.10.26"]
[WhiteClock "0:00:19"]
[BlackClock "0:00:16"]

1. b3 {[%clk 0:02:56]}  a5 {[%clk 0:03:00]} 2. a3 {[%clk 0:02:54]}  h5 {[%clk 0:02:57]} 3. Bb2 {[%clk 0:02:51]}  h4 {[%clk 0:02:58]} 4. h3 {[%clk 0:02:48]}  b6 {[%clk 0:02:58]} 5. Nf3 {[%clk 0:02:46]}  Bb7 {[%clk 0:02:58]} 6. e3 {[%clk 0:02:44]}  e6 {[%clk 0:02:57]} 7. c4 {[%clk 0:02:39]}  d6 {[%clk 0:02:27]} 8. Nc3 {[%clk 0:02:35]}  Nd7 {[%clk 0:02:23]} 9. Qc2 {[%clk 0:02:34]}  Ngf6 {[%clk 0:02:12]} 10. Be2 {[%clk 0:02:33]}  Be7 {[%clk 0:01:55]} 11. d4 {[%clk 0:02:25]}  c6 {[%clk 0:01:42]} 12. O-O-O {[%clk 0:02:23]}  Qc7 {[%clk 0:01:42]} 13. Kb1 {[%clk 0:02:17]}  d5 {[%clk 0:01:37]} 14. Ng5 {[%clk 0:02:16]}  g6 {[%clk 0:01:26]} 15. f4 {[%clk 0:02:15]}  Nh5 {[%clk 0:01:24]} 16. Nxe6 {[%clk 0:02:08]}  Qd6 {[%clk 0:01:24]} 17. Bxh5 {[%clk 0:02:01]}  Qxe6 {[%clk 0:01:16]} 18. Bg4 {[%clk 0:02:00]}  f5 {[%clk 0:01:13]} 19. Bf3 {[%clk 0:02:00]}  Nf6 {[%clk 0:01:09]} 20. cxd5 {[%clk 0:01:56]}  cxd5 {[%clk 0:01:10]} 21. Nb5 {[%clk 0:01:51]}  Bd6 {[%clk 0:01:06]} 22. Nc7+ {[%clk 0:01:44]}  Bxc7 {[%clk 0:01:06]} 23. Qxc7 {[%clk 0:01:43]}  Rh7 {[%clk 0:01:03]} 24. Qe5 {[%clk 0:01:41]}  Re7 {[%clk 0:00:58]} 25. Rc1 {[%clk 0:01:34]}  Kf7 {[%clk 0:00:50]} 26. Qxe6+ {[%clk 0:01:22]}  Rxe6 {[%clk 0:00:47]} 27. Rc7+ {[%clk 0:01:20]}  Re7 {[%clk 0:00:48]} 28. Rxe7+ {[%clk 0:01:18]}  Kxe7 {[%clk 0:00:49]} 29. Bc3 {[%clk 0:01:17]}  Kd6 {[%clk 0:00:26]} 30. Be1 {[%clk 0:01:15]}  Rh8 {[%clk 0:00:26]} 31. Bf2 {[%clk 0:01:12]}  Ba6 {[%clk 0:00:25]} 32. Kc2 {[%clk 0:01:09]}  Ne4 {[%clk 0:00:23]} 33. Bxe4 {[%clk 0:01:06]}  dxe4 {[%clk 0:00:23]} 34. Kd2 {[%clk 0:01:04]}  Bd3 {[%clk 0:00:22]} 35. Rc1 {[%clk 0:01:02]}  Ba6 {[%clk 0:00:22]} 36. a4 {[%clk 0:00:56]}  Kd7 {[%clk 0:00:21]} 37. Ke1 {[%clk 0:00:51]}  Kd6 {[%clk 0:00:22]} 38. Kd2 {[%clk 0:00:47]}  Kd7 {[%clk 0:00:22]} 39. Rg1 {[%clk 0:00:44]}  Rc8 {[%clk 0:00:19]} 40. g3 {[%clk 0:00:42]}  hxg3 {[%clk 0:00:19]} 41. Rxg3 {[%clk 0:00:40]}  Bd3 {[%clk 0:00:20]} 42. Be1 {[%clk 0:00:30]}  Rc2+ {[%clk 0:00:21]} 43. Kd1 {[%clk 0:00:28]}  Rb2 {[%clk 0:00:19]} 44. Rxg6 {[%clk 0:00:26]}  Rxb3 {[%clk 0:00:19]} 45. h4 {[%clk 0:00:24]}  Rb1+ {[%clk 0:00:16]} 46. Kd2 {[%clk 0:00:23]}  Rb2+ {[%clk 0:00:16]} 47. Kc3 {[%clk 0:00:22]}  Rc2+ {[%clk 0:00:15]} 48. Kb3 {[%clk 0:00:21]}  Rf2 {[%clk 0:00:16]} 49. Bxf2 {[%clk 0:00:19]} 1-0


[Site "https://www.chess.com"]

[Event "Titled Tuesday Blitz October 25 Late 2022"]
[White "Predke, Alexandr"]
[Black "Putnam, Liam"]
[WhiteFideId "24107581"]
[BlackFideId "30938279"]
[WhiteElo "2614"]
[BlackElo "2082"]
[Result "1-0"]
[Round "03"]
[TimeControl "180+1"]
[Date "2022.10.26"]
[WhiteClock "0:00:05"]
[BlackClock "0:00:16"]

1. Nf3 {[%clk 0:03:00]}  d5 {[%clk 0:02:59]} 2. g3 {[%clk 0:03:01]}  g6 {[%clk 0:02:55]} 3. d4 {[%clk 0:03:00]}  Bg7 {[%clk 0:02:55]} 4. c4 {[%clk 0:03:01]}  dxc4 {[%clk 0:02:50]} 5. Qa4+ {[%clk 0:02:57]}  c6 {[%clk 0:02:01]} 6. Qxc4 {[%clk 0:02:54]}  Be6 {[%clk 0:02:02]} 7. Qc2 {[%clk 0:02:47]}  Bf5 {[%clk 0:01:43]} 8. Qb3 {[%clk 0:02:43]}  Qb6 {[%clk 0:01:42]} 9. Nbd2 {[%clk 0:02:30]}  Na6 {[%clk 0:01:32]} 10. e4 {[%clk 0:02:16]}  Be6 {[%clk 0:01:14]} 11. Bc4 {[%clk 0:02:15]}  Bxc4 {[%clk 0:00:58]} 12. Nxc4 {[%clk 0:02:14]}  Qxb3 {[%clk 0:00:58]} 13. axb3 {[%clk 0:02:14]}  Nb4 {[%clk 0:00:59]} 14. Kd1 {[%clk 0:01:56]}  Nf6 {[%clk 0:00:52]} 15. Bd2 {[%clk 0:01:54]}  Na6 {[%clk 0:00:37]} 16. Re1 {[%clk 0:01:50]}  O-O {[%clk 0:00:34]} 17. Kc2 {[%clk 0:01:49]}  Rfd8 {[%clk 0:00:33]} 18. Bc3 {[%clk 0:01:49]}  Nd7 {[%clk 0:00:31]} 19. Na5 {[%clk 0:01:47]}  Nc7 {[%clk 0:00:15]} 20. Nxb7 {[%clk 0:01:46]}  Rdb8 {[%clk 0:00:15]} 21. Na5 {[%clk 0:01:47]}  Rb6 {[%clk 0:00:15]} 22. Nc4 {[%clk 0:01:41]}  Rb7 {[%clk 0:00:15]} 23. Ra5 {[%clk 0:01:35]}  Rab8 {[%clk 0:00:15]} 24. Rea1 {[%clk 0:01:35]}  Nb5 {[%clk 0:00:15]} 25. Ra6 {[%clk 0:01:28]}  Rc7 {[%clk 0:00:15]} 26. h4 {[%clk 0:01:24]}  h5 {[%clk 0:00:15]} 27. R6a4 {[%clk 0:01:12]}  Nf6 {[%clk 0:00:13]} 28. Re1 {[%clk 0:01:08]}  Ng4 {[%clk 0:00:13]} 29. Re2 {[%clk 0:01:08]}  Rd8 {[%clk 0:00:14]} 30. Rd2 {[%clk 0:01:07]}  Bh6 {[%clk 0:00:07]} 31. Re2 {[%clk 0:01:07]}  Rcd7 {[%clk 0:00:07]} 32. Na5 {[%clk 0:01:08]}  Rc7 {[%clk 0:00:05]} 33. Rc4 {[%clk 0:01:08]}  Rdc8 {[%clk 0:00:04]} 34. Ne5 {[%clk 0:01:03]}  Nd6 {[%clk 0:00:05]} 35. Rxc6 {[%clk 0:01:00]}  Nxe5 {[%clk 0:00:04]} 36. Rxc7 {[%clk 0:01:00]}  Rxc7 {[%clk 0:00:05]} 37. dxe5 {[%clk 0:01:01]}  Nb5 {[%clk 0:00:06]} 38. Nc4 {[%clk 0:01:01]}  Bg7 {[%clk 0:00:04]} 39. f4 {[%clk 0:01:01]}  Rc6 {[%clk 0:00:04]} 40. Rd2 {[%clk 0:01:01]}  Bf8 {[%clk 0:00:02]} 41. Rd8 {[%clk 0:01:01]}  Kg7 {[%clk 0:00:03]} 42. Rb8 {[%clk 0:00:53]}  a6 {[%clk 0:00:03]} 43. Rb6 {[%clk 0:00:48]}  Rc7 {[%clk 0:00:03]} 44. e6+ {[%clk 0:00:42]}  f6 {[%clk 0:00:03]} 45. Rxa6 {[%clk 0:00:41]}  Rc8 {[%clk 0:00:03]} 46. Rb6 {[%clk 0:00:40]}  Na7 {[%clk 0:00:03]} 47. f5 {[%clk 0:00:35]}  Rc7 {[%clk 0:00:02]} 48. Kd3 {[%clk 0:00:32]}  Nc8 {[%clk 0:00:02]} 49. Ra6 {[%clk 0:00:29]}  Na7 {[%clk 0:00:03]} 50. Ba5 {[%clk 0:00:27]}  Rb7 {[%clk 0:00:03]} 51. Rb6 {[%clk 0:00:27]}  Rc7 {[%clk 0:00:04]} 52. Rb8 {[%clk 0:00:25]}  Rc6 {[%clk 0:00:04]} 53. Rb7 {[%clk 0:00:24]}  Nc8 {[%clk 0:00:04]} 54. Rd7 {[%clk 0:00:14]}  gxf5 {[%clk 0:00:03]} 55. exf5 {[%clk 0:00:14]}  Rc5 {[%clk 0:00:04]} 56. Ke4 {[%clk 0:00:14]}  Rb5 {[%clk 0:00:02]} 57. b4 {[%clk 0:00:14]}  Rb8 {[%clk 0:00:02]} 58. Rc7 {[%clk 0:00:11]}  Kg8 {[%clk 0:00:02]} 59. Kd5 {[%clk 0:00:11]}  Ra8 {[%clk 0:00:03]} 60. Kc6 {[%clk 0:00:11]}  Rb8 {[%clk 0:00:03]} 61. Kd7 {[%clk 0:00:12]}  Rb5 {[%clk 0:00:02]} 62. Rxc8 {[%clk 0:00:11]}  Rd5+ {[%clk 0:00:02]} 63. Kc6 {[%clk 0:00:10]}  Rxf5 {[%clk 0:00:03]} 64. b5 {[%clk 0:00:10]}  Kg7 {[%clk 0:00:03]} 65. b6 {[%clk 0:00:09]}  Rf1 {[%clk 0:00:02]} 66. b7 {[%clk 0:00:09]}  Rc1 {[%clk 0:00:03]} 67. Kb5 {[%clk 0:00:10]}  Rd1 {[%clk 0:00:02]} 68. b8=Q {[%clk 0:00:10]}  Rd5+ {[%clk 0:00:03]} 69. Ka4 {[%clk 0:00:09]}  Kh7 {[%clk 0:00:04]} 70. Rxf8 {[%clk 0:00:08]}  Rd4 {[%clk 0:00:04]} 71. Rh8+ {[%clk 0:00:08]}  Kg6 {[%clk 0:00:05]} 72. Qg8+ {[%clk 0:00:07]}  Kf5 {[%clk 0:00:06]} 73. Qh7+ {[%clk 0:00:07]}  Kxe6 {[%clk 0:00:06]} 74. Qg8+ {[%clk 0:00:06]}  Kf5 {[%clk 0:00:06]} 75. Rxh5+ {[%clk 0:00:06]}  Ke4 {[%clk 0:00:06]} 76. Qg4+ {[%clk 0:00:04]}  Kd3 {[%clk 0:00:07]} 77. Qxd4+ {[%clk 0:00:04]}  Kxd4 {[%clk 0:00:08]} 78. b3 {[%clk 0:00:04]}  Ke4 {[%clk 0:00:08]} 79. b4 {[%clk 0:00:05]}  e5 {[%clk 0:00:09]} 80. b5 {[%clk 0:00:05]}  Kd5 {[%clk 0:00:09]} 81. b6 {[%clk 0:00:05]}  Kxc4 {[%clk 0:00:10]} 82. b7 {[%clk 0:00:05]}  Kd4 {[%clk 0:00:11]} 83. b8=Q {[%clk 0:00:06]}  Ke4 {[%clk 0:00:12]} 84. Qb1+ {[%clk 0:00:06]}  Kd5 {[%clk 0:00:12]} 85. Rf5 {[%clk 0:00:05]}  Kc4 {[%clk 0:00:13]} 86. Qb5+ {[%clk 0:00:04]}  Kd4 {[%clk 0:00:14]} 87. h5 {[%clk 0:00:04]}  Ke4 {[%clk 0:00:14]} 88. Rf1 {[%clk 0:00:04]}  f5 {[%clk 0:00:14]} 89. h6 {[%clk 0:00:04]}  f4 {[%clk 0:00:14]} 90. gxf4 {[%clk 0:00:04]}  exf4 {[%clk 0:00:15]} 91. h7 {[%clk 0:00:04]}  Ke3 {[%clk 0:00:15]} 92. h8=Q {[%clk 0:00:05]}  f3 {[%clk 0:00:15]} 93. Qc3+ {[%clk 0:00:05]}  Kf4 {[%clk 0:00:15]} 94. Qce5+ {[%clk 0:00:05]}  Kg4 {[%clk 0:00:15]} 95. Qg5+ {[%clk 0:00:05]}  Kh3 {[%clk 0:00:16]} 96. Rh1# {[%clk 0:00:05]} 1-0


[Site "https://www.chess.com"]

[Event "Titled Tuesday Blitz October 25 Late 2022"]
[White "Richter, Paul"]
[Black "Yano, William Jorge Froes"]
[WhiteFideId "2046350"]
[BlackFideId "2112949"]
[WhiteElo "2593"]
[BlackElo "2122"]
[Result "1-0"]
[Round "03"]
[TimeControl "180+1"]
[Date "2022.10.26"]
[WhiteClock "0:00:26"]
[BlackClock "0:00:02"]

1. e4 {[%clk 0:03:00]}  e6 {[%clk 0:03:00]} 2. d4 {[%clk 0:03:00]}  d5 {[%clk 0:03:00]} 3. Nc3 {[%clk 0:03:00]}  Bb4 {[%clk 0:02:59]} 4. e5 {[%clk 0:03:00]}  c5 {[%clk 0:02:59]} 5. a3 {[%clk 0:03:00]}  Ba5 {[%clk 0:03:00]} 6. Qg4 {[%clk 0:02:52]}  Ne7 {[%clk 0:03:00]} 7. dxc5 {[%clk 0:02:40]}  Bxc3+ {[%clk 0:02:59]} 8. bxc3 {[%clk 0:02:41]}  Nbc6 {[%clk 0:02:58]} 9. Nf3 {[%clk 0:02:36]}  Qa5 {[%clk 0:02:56]} 10. Bd2 {[%clk 0:02:34]}  Qxc5 {[%clk 0:02:55]} 11. Qxg7 {[%clk 0:02:32]}  Rg8 {[%clk 0:02:55]} 12. Qxh7 {[%clk 0:02:32]}  Bd7 {[%clk 0:02:55]} 13. Qd3 {[%clk 0:02:19]}  Ng6 {[%clk 0:02:15]} 14. Be3 {[%clk 0:02:17]}  Qa5 {[%clk 0:02:14]} 15. h4 {[%clk 0:01:17]}  Ngxe5 {[%clk 0:02:06]} 16. Nxe5 {[%clk 0:01:18]}  Nxe5 {[%clk 0:02:06]} 17. Qd2 {[%clk 0:01:18]}  Ba4 {[%clk 0:01:43]} 18. c4 {[%clk 0:01:01]}  Qxd2+ {[%clk 0:00:53]} 19. Kxd2 {[%clk 0:01:02]}  Nxc4+ {[%clk 0:00:47]} 20. Bxc4 {[%clk 0:01:00]}  dxc4 {[%clk 0:00:47]} 21. Rag1 {[%clk 0:00:56]}  Bc6 {[%clk 0:00:45]} 22. Rh2 {[%clk 0:00:46]}  a6 {[%clk 0:00:32]} 23. h5 {[%clk 0:00:45]}  f6 {[%clk 0:00:25]} 24. g4 {[%clk 0:00:42]}  Bf3 {[%clk 0:00:14]} 25. h6 {[%clk 0:00:42]}  Be4 {[%clk 0:00:06]} 26. g5 {[%clk 0:00:39]}  fxg5 {[%clk 0:00:06]} 27. Rxg5 {[%clk 0:00:36]}  Rxg5 {[%clk 0:00:05]} 28. Bxg5 {[%clk 0:00:36]}  Kf7 {[%clk 0:00:05]} 29. Bf4 {[%clk 0:00:34]}  Rh8 {[%clk 0:00:03]} 30. Be5 {[%clk 0:00:33]}  Rd8+ {[%clk 0:00:02]} 31. Kc3 {[%clk 0:00:32]}  Bh7 {[%clk 0:00:03]} 32. Rg2 {[%clk 0:00:32]}  Rg8 {[%clk 0:00:02]} 33. Bg7 {[%clk 0:00:30]}  Rd8 {[%clk 0:00:02]} 34. Rg4 {[%clk 0:00:27]}  Rc8 {[%clk 0:00:02]} 35. Be5 {[%clk 0:00:26]}  Ke7 {[%clk 0:00:02]} 36. Rg7+ {[%clk 0:00:26]} 1-0


[Site "https://www.chess.com"]

[Event "Titled Tuesday Blitz October 25 Late 2022"]
[White "Roman, Rodrigo"]
[Black "Vargas, Mauricio"]
[WhiteFideId "3701220"]
[BlackFideId "4404572"]
[WhiteElo "2001"]
[BlackElo "2025"]
[Result "1-0"]
[Round "03"]
[TimeControl "180+1"]
[Date "2022.10.26"]
[WhiteClock "0:00:04"]
[BlackClock "0:00:00"]

1. e4 {[%clk 0:03:00]}  c6 {[%clk 0:01:04]} 2. d4 {[%clk 0:02:23]}  d5 {[%clk 0:01:05]} 3. Nc3 {[%clk 0:02:22]}  dxe4 {[%clk 0:01:05]} 4. Nxe4 {[%clk 0:02:23]}  Nf6 {[%clk 0:01:06]} 5. Nxf6+ {[%clk 0:02:22]}  exf6 {[%clk 0:01:07]} 6. Nf3 {[%clk 0:02:22]}  Bd6 {[%clk 0:01:07]} 7. Bd3 {[%clk 0:02:22]}  O-O {[%clk 0:01:08]} 8. O-O {[%clk 0:02:23]}  Re8 {[%clk 0:01:03]} 9. c3 {[%clk 0:02:18]}  Nd7 {[%clk 0:01:03]} 10. Bc2 {[%clk 0:02:18]}  Nf8 {[%clk 0:01:04]} 11. h3 {[%clk 0:02:15]}  Bc7 {[%clk 0:01:04]} 12. Nh4 {[%clk 0:02:12]}  Qd6 {[%clk 0:01:01]} 13. f4 {[%clk 0:02:13]}  g5 {[%clk 0:00:54]} 14. Nf5 {[%clk 0:02:10]}  Bxf5 {[%clk 0:00:54]} 15. Bxf5 {[%clk 0:02:11]}  Ng6 {[%clk 0:00:45]} 16. Bd2 {[%clk 0:01:20]}  gxf4 {[%clk 0:00:34]} 17. Bxg6 {[%clk 0:00:53]}  hxg6 {[%clk 0:00:31]} 18. Bxf4 {[%clk 0:00:51]}  Qd7 {[%clk 0:00:31]} 19. Bxc7 {[%clk 0:00:52]}  Qxc7 {[%clk 0:00:32]} 20. Rxf6 {[%clk 0:00:51]}  Kg7 {[%clk 0:00:32]} 21. Qf3 {[%clk 0:00:50]}  Rf8 {[%clk 0:00:31]} 22. Rf1 {[%clk 0:00:50]}  Rae8 {[%clk 0:00:29]} 23. h4 {[%clk 0:00:48]}  c5 {[%clk 0:00:26]} 24. d5 {[%clk 0:00:44]}  Qe7 {[%clk 0:00:24]} 25. d6 {[%clk 0:00:23]}  Qe3+ {[%clk 0:00:23]} 26. Qxe3 {[%clk 0:00:20]}  Rxe3 {[%clk 0:00:24]} 27. h5 {[%clk 0:00:06]}  gxh5 {[%clk 0:00:21]} 28. R6f5 {[%clk 0:00:06]}  Rd3 {[%clk 0:00:17]} 29. Rg5+ {[%clk 0:00:04]}  Kh6 {[%clk 0:00:14]} 30. Rxc5 {[%clk 0:00:04]}  Rxd6 {[%clk 0:00:13]} 31. Rc7 {[%clk 0:00:05]}  Rb6 {[%clk 0:00:12]} 32. b3 {[%clk 0:00:05]}  Kg7 {[%clk 0:00:11]} 33. Rf5 {[%clk 0:00:04]}  Ra6 {[%clk 0:00:11]} 34. a4 {[%clk 0:00:03]}  Kg6 {[%clk 0:00:10]} 35. Rb5 {[%clk 0:00:02]}  Rb6 {[%clk 0:00:09]} 36. Rxb6+ {[%clk 0:00:02]}  axb6 {[%clk 0:00:10]} 37. Rxb7 {[%clk 0:00:03]}  Rc8 {[%clk 0:00:09]} 38. Rxb6+ {[%clk 0:00:03]}  f6 {[%clk 0:00:08]} 39. c4 {[%clk 0:00:04]}  Rd8 {[%clk 0:00:07]} 40. a5 {[%clk 0:00:04]}  Rd1+ {[%clk 0:00:08]} 41. Kh2 {[%clk 0:00:04]}  Rb1 {[%clk 0:00:08]} 42. a6 {[%clk 0:00:05]}  Ra1 {[%clk 0:00:08]} 43. c5 {[%clk 0:00:05]}  Ra3 {[%clk 0:00:06]} 44. b4 {[%clk 0:00:05]}  Kg5 {[%clk 0:00:05]} 45. b5 {[%clk 0:00:05]}  f5 {[%clk 0:00:05]} 46. Rb8 {[%clk 0:00:05]}  Ra2 {[%clk 0:00:04]} 47. c6 {[%clk 0:00:04]}  Kg4 {[%clk 0:00:04]} 48. Rg8+ {[%clk 0:00:04]}  Kf4 {[%clk 0:00:04]} 49. c7 {[%clk 0:00:05]}  Rb2 {[%clk 0:00:03]} 50. c8=Q {[%clk 0:00:04]}  h4 {[%clk 0:00:03]} 51. Qc4+ {[%clk 0:00:03]}  Ke5 {[%clk 0:00:00]} 52. Qc3+ {[%clk 0:00:04]} 1-0


[Site "https://www.chess.com"]

[Event "Titled Tuesday Blitz October 25 Late 2022"]
[White "Runets, Ivan"]
[Black "Gatterer, Florian"]
[WhiteFideId "13511564"]
[BlackFideId "811688"]
[WhiteElo "2076"]
[BlackElo "2218"]
[Result "1-0"]
[Round "03"]
[TimeControl "180+1"]
[Date "2022.10.26"]
[WhiteClock "0:00:48"]
[BlackClock "0:00:01"]

1. d4 {[%clk 0:03:00]}  Nf6 {[%clk 0:02:54]} 2. c4 {[%clk 0:03:00]}  e6 {[%clk 0:02:54]} 3. Nc3 {[%clk 0:03:00]}  Bb4 {[%clk 0:02:52]} 4. e3 {[%clk 0:03:00]}  O-O {[%clk 0:02:51]} 5. Bd3 {[%clk 0:03:00]}  d5 {[%clk 0:02:49]} 6. Ne2 {[%clk 0:02:59]}  dxc4 {[%clk 0:02:48]} 7. Bxc4 {[%clk 0:02:56]}  c5 {[%clk 0:02:47]} 8. O-O {[%clk 0:02:52]}  cxd4 {[%clk 0:02:42]} 9. exd4 {[%clk 0:02:48]}  b6 {[%clk 0:02:36]} 10. Bg5 {[%clk 0:02:47]}  Be7 {[%clk 0:02:29]} 11. Rc1 {[%clk 0:02:32]}  Bb7 {[%clk 0:02:29]} 12. a3 {[%clk 0:02:24]}  h6 {[%clk 0:02:23]} 13. Bh4 {[%clk 0:02:20]}  Nbd7 {[%clk 0:02:20]} 14. Bg3 {[%clk 0:02:18]}  a6 {[%clk 0:02:08]} 15. Ba2 {[%clk 0:02:09]}  Rc8 {[%clk 0:02:02]} 16. Nf4 {[%clk 0:01:59]}  Ne4 {[%clk 0:01:18]} 17. Nxe4 {[%clk 0:01:45]}  Rxc1 {[%clk 0:01:10]} 18. Qxc1 {[%clk 0:01:45]}  Bxe4 {[%clk 0:01:09]} 19. Re1 {[%clk 0:01:45]}  Bf5 {[%clk 0:00:54]} 20. d5 {[%clk 0:01:31]}  e5 {[%clk 0:00:50]} 21. Ne2 {[%clk 0:01:30]}  Bc5 {[%clk 0:00:31]} 22. b4 {[%clk 0:01:26]}  Bd6 {[%clk 0:00:27]} 23. Nc3 {[%clk 0:01:26]}  Qc8 {[%clk 0:00:20]} 24. Qe3 {[%clk 0:01:25]}  Re8 {[%clk 0:00:15]} 25. Ne4 {[%clk 0:01:15]}  Bxe4 {[%clk 0:00:14]} 26. Qxe4 {[%clk 0:01:15]}  Qd8 {[%clk 0:00:13]} 27. Bb1 {[%clk 0:01:14]}  g6 {[%clk 0:00:13]} 28. Qd3 {[%clk 0:01:11]}  b5 {[%clk 0:00:11]} 29. h4 {[%clk 0:01:09]}  f5 {[%clk 0:00:11]} 30. h5 {[%clk 0:01:08]}  e4 {[%clk 0:00:11]} 31. Qc3 {[%clk 0:01:05]}  f4 {[%clk 0:00:07]} 32. Bh2 {[%clk 0:00:58]}  e3 {[%clk 0:00:05]} 33. fxe3 {[%clk 0:00:52]}  Qg5 {[%clk 0:00:03]} 34. Bxg6 {[%clk 0:00:49]}  Re7 {[%clk 0:00:02]} 35. exf4 {[%clk 0:00:47]}  Rxe1+ {[%clk 0:00:01]} 36. Qxe1 {[%clk 0:00:48]}  Bxf4 {[%clk 0:00:01]} 37. Qe6+ {[%clk 0:00:48]} 1-0


[Site "https://www.chess.com"]

[Event "Titled Tuesday Blitz October 25 Late 2022"]
[White "Rustemov, Alexander"]
[Black "Garayev, Kanan"]
[WhiteFideId "4119002"]
[BlackFideId "13406671"]
[WhiteElo "2791"]
[BlackElo "2244"]
[Result "1-0"]
[Round "03"]
[TimeControl "180+1"]
[Date "2022.10.26"]
[WhiteClock "0:00:22"]
[BlackClock "0:01:14"]

1. d4 {[%clk 0:03:00]}  Nf6 {[%clk 0:02:57]} 2. c4 {[%clk 0:03:01]}  e6 {[%clk 0:02:57]} 3. Nf3 {[%clk 0:03:01]}  d5 {[%clk 0:02:54]} 4. Nc3 {[%clk 0:03:01]}  Bb4 {[%clk 0:02:55]} 5. Bg5 {[%clk 0:03:01]}  O-O {[%clk 0:02:52]} 6. e3 {[%clk 0:03:01]}  dxc4 {[%clk 0:02:52]} 7. Bxc4 {[%clk 0:03:00]}  c5 {[%clk 0:02:53]} 8. O-O {[%clk 0:03:00]}  cxd4 {[%clk 0:02:52]} 9. exd4 {[%clk 0:02:53]}  Bxc3 {[%clk 0:02:48]} 10. bxc3 {[%clk 0:02:53]}  h6 {[%clk 0:02:49]} 11. Bh4 {[%clk 0:02:50]}  b6 {[%clk 0:02:48]} 12. Bd3 {[%clk 0:02:46]}  Bb7 {[%clk 0:02:45]} 13. Qe2 {[%clk 0:02:30]}  Nbd7 {[%clk 0:02:44]} 14. Rfe1 {[%clk 0:02:27]}  Qc7 {[%clk 0:02:41]} 15. c4 {[%clk 0:02:25]}  Rac8 {[%clk 0:02:33]} 16. Bg3 {[%clk 0:02:15]}  Qc6 {[%clk 0:02:30]} 17. a4 {[%clk 0:02:11]}  Nh5 {[%clk 0:02:19]} 18. a5 {[%clk 0:02:04]}  bxa5 {[%clk 0:02:19]} 19. Rxa5 {[%clk 0:02:01]}  Nxg3 {[%clk 0:02:19]} 20. hxg3 {[%clk 0:02:01]}  Nb6 {[%clk 0:02:14]} 21. Rxa7 {[%clk 0:01:53]}  Ra8 {[%clk 0:02:12]} 22. Rea1 {[%clk 0:01:45]}  Rxa7 {[%clk 0:02:08]} 23. Rxa7 {[%clk 0:01:46]}  Ra8 {[%clk 0:02:05]} 24. Qa2 {[%clk 0:01:36]}  Rd8 {[%clk 0:02:00]} 25. Bf1 {[%clk 0:01:30]}  Nc8 {[%clk 0:01:48]} 26. Ra5 {[%clk 0:01:25]}  Ne7 {[%clk 0:01:46]} 27. Qb2 {[%clk 0:00:40]}  Nf5 {[%clk 0:01:35]} 28. Rb5 {[%clk 0:00:38]}  Ba6 {[%clk 0:01:16]} 29. Rb8 {[%clk 0:00:38]}  Qc8 {[%clk 0:01:17]} 30. Rxc8 {[%clk 0:00:37]}  Rxc8 {[%clk 0:01:17]} 31. c5 {[%clk 0:00:34]}  Bxf1 {[%clk 0:01:15]} 32. Kxf1 {[%clk 0:00:33]}  Ne7 {[%clk 0:01:15]} 33. Qb7 {[%clk 0:00:32]}  Kf8 {[%clk 0:01:15]} 34. Ne5 {[%clk 0:00:31]}  Rd8 {[%clk 0:01:16]} 35. c6 {[%clk 0:00:27]}  f6 {[%clk 0:01:16]} 36. c7 {[%clk 0:00:21]}  Rc8 {[%clk 0:01:13]} 37. Nd7+ {[%clk 0:00:21]}  Kf7 {[%clk 0:01:14]} 38. Nb6 {[%clk 0:00:22]} 1-0


[Site "https://www.chess.com"]

[Event "Titled Tuesday Blitz October 25 Late 2022"]
[White "Salimova, Nurgyul"]
[Black "Korobov, Anton"]
[WhiteFideId "2915138"]
[BlackFideId "14105730"]
[WhiteElo "2315"]
[BlackElo "2635"]
[Result "0-1"]
[Round "03"]
[TimeControl "180+1"]
[Date "2022.10.26"]
[WhiteClock "0:00:02"]
[BlackClock "0:00:25"]

1. Nf3 {[%clk 0:03:00]}  Nf6 {[%clk 0:02:59]} 2. c4 {[%clk 0:03:00]}  e6 {[%clk 0:02:58]} 3. b3 {[%clk 0:03:00]}  d5 {[%clk 0:02:58]} 4. Bb2 {[%clk 0:03:01]}  c5 {[%clk 0:02:58]} 5. cxd5 {[%clk 0:02:59]}  exd5 {[%clk 0:02:57]} 6. e3 {[%clk 0:02:54]}  Nc6 {[%clk 0:02:57]} 7. Bb5 {[%clk 0:02:54]}  Bd7 {[%clk 0:02:56]} 8. O-O {[%clk 0:02:54]}  Bd6 {[%clk 0:02:56]} 9. d4 {[%clk 0:02:51]}  cxd4 {[%clk 0:02:56]} 10. Bxc6 {[%clk 0:02:48]}  bxc6 {[%clk 0:02:56]} 11. Qxd4 {[%clk 0:02:45]}  c5 {[%clk 0:02:45]} 12. Qh4 {[%clk 0:02:44]}  O-O {[%clk 0:02:31]} 13. Bxf6 {[%clk 0:02:31]}  Qxf6 {[%clk 0:02:32]} 14. Qxf6 {[%clk 0:02:31]}  gxf6 {[%clk 0:02:30]} 15. Nc3 {[%clk 0:02:32]}  Be6 {[%clk 0:02:31]} 16. Rfd1 {[%clk 0:02:32]}  Rfd8 {[%clk 0:02:31]} 17. Rac1 {[%clk 0:02:31]}  Rac8 {[%clk 0:02:29]} 18. Kf1 {[%clk 0:02:26]}  Be7 {[%clk 0:02:27]} 19. Ne2 {[%clk 0:02:21]}  Bd6 {[%clk 0:02:00]} 20. Rd2 {[%clk 0:02:03]}  Rd7 {[%clk 0:01:51]} 21. Nc3 {[%clk 0:01:59]}  Be7 {[%clk 0:01:46]} 22. Rcd1 {[%clk 0:01:58]}  Rcd8 {[%clk 0:01:46]} 23. Na4 {[%clk 0:01:18]}  Kf8 {[%clk 0:01:41]} 24. Rc2 {[%clk 0:01:16]}  Rc7 {[%clk 0:01:38]} 25. Nd4 {[%clk 0:01:12]}  Bd7 {[%clk 0:01:30]} 26. Nb2 {[%clk 0:01:03]}  Rdc8 {[%clk 0:01:22]} 27. Rdc1 {[%clk 0:01:01]}  a5 {[%clk 0:01:14]} 28. Nd3 {[%clk 0:00:54]}  Bd6 {[%clk 0:01:03]} 29. Ne2 {[%clk 0:00:37]}  Bb5 {[%clk 0:01:00]} 30. Nb2 {[%clk 0:00:31]}  d4 {[%clk 0:00:50]} 31. Rd1 {[%clk 0:00:19]}  Be7 {[%clk 0:00:42]} 32. Nc4 {[%clk 0:00:15]}  dxe3 {[%clk 0:00:42]} 33. Nxe3 {[%clk 0:00:13]}  a4 {[%clk 0:00:42]} 34. Nc4 {[%clk 0:00:12]}  axb3 {[%clk 0:00:40]} 35. axb3 {[%clk 0:00:13]}  Rb8 {[%clk 0:00:37]} 36. Nc3 {[%clk 0:00:12]}  Bc6 {[%clk 0:00:37]} 37. Rb1 {[%clk 0:00:05]}  Bd7 {[%clk 0:00:30]} 38. f3 {[%clk 0:00:04]}  Be6 {[%clk 0:00:27]} 39. Ne4 {[%clk 0:00:03]}  Rcb7 {[%clk 0:00:27]} 40. Rc3 {[%clk 0:00:02]}  Rxb3 {[%clk 0:00:26]} 41. Rbxb3 {[%clk 0:00:02]}  Rxb3 {[%clk 0:00:26]} 42. Rc2 {[%clk 0:00:02]}  f5 {[%clk 0:00:26]} 43. Ned2 {[%clk 0:00:02]}  Rb4 {[%clk 0:00:27]} 44. Ne3 {[%clk 0:00:02]}  Bg5 {[%clk 0:00:25]} 0-1


[Site "https://www.chess.com"]